fUSD/lending_fUSD_20240912
["ID","MTS","AMOUNT","RATE_DAILY","PERIOD"]
[337875284,1726177844954,-325.081799,0.00013586,2]
[337875286,1726177844963,-325.081799,0.00013586,2]
[337875288,1726177844974,-13433.43286494,0.00013586,2]
[337875290,1726177844984,-1813.0,0.00013603,2]
[337875293,1726177844995,-1818.79266841,0.0001363,2]
[337875295,1726177845004,-312.68,0.00013648,2]
[337875296,1726177845013,-500.0,0.00013698,2]
[337875298,1726177845024,-500.0,0.00013699,2]
[337875300,1726177845034,-269.719505,0.000137,2]
[337875302,1726177845044,-269.719506,0.000137,2]
[337875304,1726177845053,-151.0,0.000137,2]
[337875306,1726177845062,-2000.0,0.000137,2]
[337875308,1726177845071,-1165.540144,0.00013701,2]
[337875310,1726177845080,-1165.540153,0.00013701,2]
[337875311,1726177845089,-421.35408526,0.00013702,2]
[337875313,1726177845098,-1702.27240758,0.00013702,2]
[337875315,1726177845107,-1580.93077399,0.0001373,2]
[337875317,1726177845116,-7166.85,0.0001375,6]
[337875319,1726177845126,-186.08543356,0.00013797,2]
[337875321,1726177845135,-151.0,0.000138,2]
[337875322,1726177845144,-325.081799,0.000138,2]
[337875323,1726177845153,-325.081803,0.000138,2]
[337875324,1726177845162,-635.14886,0.000138,2]
[337875325,1726177845171,-635.14886,0.000138,2]
[337875326,1726177845181,-725.441824,0.000138,2]
[337875327,1726177845191,-725.441824,0.000138,2]
[337875328,1726177845200,-151.0,0.000138,2]
[337875329,1726177845210,-3627.450564,0.000138,2]
[337875330,1726177845220,-371.733623,0.000138,2]
[337875331,1726177845229,-371.733623,0.000138,2]
[337875332,1726177845238,-294.412549,0.000138,2]
[337875333,1726177845248,-233611.540457,0.000138,2]
[337875334,1726177845257,-294.412549,0.000138,2]
[337875335,1726177845266,-227.605044,0.000138,2]
[337875336,1726177845275,-13433.43286494,0.00013808,2]
[337875337,1726177845284,-221.0,0.0001385,2]
[337875338,1726177845293,-1000.0,0.000139,3]
[337875340,1726177845304,-1000.0,0.000139,3]
[337875342,1726177845313,-1000.0,0.000139,3]
[337875343,1726177845323,-1000.0,0.000139,2]
[337875345,1726177845332,-280.896209,0.000139,2]
[337875348,1726177845342,-280.896203,0.000139,2]
[337875349,1726177845351,-635.14886,0.000139,2]
[337875351,1726177845360,-635.148856,0.000139,2]
[337875354,1726177845370,-725.441824,0.000139,2]
[337875356,1726177845383,-725.441821,0.000139,2]
[337875358,1726177845392,-151.0,0.000139,2]
[337875360,1726177845402,-3627.450563,0.000139,2]
[337875362,1726177845412,-371.733623,0.000139,2]
[337875364,1726177845423,-371.73363,0.000139,2]
[337875365,1726177845432,-294.412549,0.000139,2]
[337875367,1726177845442,-294.412547,0.000139,2]
[337875369,1726177845452,-156.40179105,0.00013918,2]
[337875371,1726177845462,-176.81501871,0.00013967,2]
[337875373,1726177845471,-221.0,0.0001397,2]
[337875376,1726177845481,-1580.93077399,0.00013988,2]
[337875378,1726177845491,-687.45784369,0.00014,2]
[337875382,1726177845502,-156.40179105,0.00014,2]
[337875385,1726177845512,-694.65064,0.0001402,2]
[337875388,1726177845522,-13433.43286494,0.00014029,2]
[337875390,1726177845532,-221.0,0.0001409,2]
[337875393,1726177845542,-156.40179105,0.0001411,2]
[337875396,1726177845553,-206.0,0.0001419,2]
[337875399,1726177845562,-201.0,0.0001421,2]
[337875401,1726177845572,-156.40179105,0.00014219,2]
[337875403,1726177845582,-221.0,0.0001422,2]
[337875405,1726177845592,-1580.93077399,0.00014245,2]
[337875408,1726177845602,-201.0,0.0001427,2]
[337875410,1726177845611,-156.40179105,0.00014274,2]
[337875414,1726177845622,-206.0,0.0001431,2]
[337875416,1726177845631,-201.0,0.0001432,2]
[337875420,1726177845642,-156.40179105,0.00014329,2]
[337875422,1726177845653,-221.0,0.0001434,2]
[337875426,1726177845663,-201.0,0.0001438,2]
[337875427,1726177845673,-215.0,0.0001441,2]
[337875429,1726177845682,-206.0,0.0001443,2]
[337875431,1726177845692,-156.40179105,0.00014438,2]
[337875434,1726177845701,-201.0,0.0001444,2]
[337875436,1726177845710,-221.0,0.0001446,2]
[337875438,1726177845720,-215.0,0.0001447,2]
[337875440,1726177845729,-201.0,0.0001449,2]
[337875442,1726177845739,-5800.0,0.00014492,2]
[337875444,1726177845748,-6828.25984903,0.000145,7]
[337875446,1726177845758,-1000.0,0.000145,3]
[337875447,1726177845767,-1000.0,0.000145,4]
[337875448,1726177845776,-5800.0,0.000145,2]
[337875449,1726177845786,-176.81501871,0.000145,2]
[337875450,1726177845794,-1580.93077399,0.00014503,2]
[337875451,1726177845804,-421.35408526,0.00014503,2]
[337875452,1726177845813,-1702.27240758,0.00014503,2]
[337875453,1726177845823,-177.68959691,0.00014503,2]
[337875454,1726177845832,-215.0,0.0001452,2]
[337875455,1726177845842,-500.0,0.00014521,2]
[337875456,1726177846055,-156.40179105,0.00014548,2]
[337875457,1726177846064,-201.0,0.0001455,2]
[337875458,1726177846074,-201.0,0.0001455,2]
[337875459,1726177846083,-206.0,0.0001455,2]
[337875460,1726177846092,-7900.22382143,0.00014567,2]
[337875461,1726177846101,-500.0,0.00014573,2]
[337875462,1726177846110,-500.0,0.00014573,2]
[337875463,1726177846119,-215.0,0.0001458,2]
[337875464,1726177846128,-221.0,0.0001459,2]
[337875465,1726177846138,-500.0,0.00014594,2]
[337875466,1726177846148,-4789448.27073838,0.000146,2]
[337875467,1726177846185,-2615.27912724,0.000146,2]
[337875468,1726177846197,-475.57244932,0.000146,2]
[337875469,1726177847868,-313.40099967,0.00012799,2]
[337875470,1726177847900,-485.90063499,0.00012799,2]
[337875471,1726177847910,-151.0,0.00013,2]
[337875472,1726177847919,-151.0,0.00013,2]
[337875473,1726177847929,-151.0,0.00013,2]
[337875474,1726177847938,-151.0,0.00013,2]
[337875475,1726177847947,-1079.0,0.00013358,2]
[337875476,1726177847956,-13433.43286494,0.00014251,2]
[337875477,1726177847966,-2259.16358881,0.000146,2]
[337875478,1726177847978,-17586.54528198,0.000146,2]
[337875479,1726177847988,-8165.54874524,0.000146,2]
[337875480,1726177848603,-875.97161968,0.000129,2]
[337875481,1726177848613,-585.98258478,0.00012999,2]
[337875482,1726177848622,-494.81704554,0.00013,2]
[337875483,1726177848638,-1461.54604344,0.00013,2]
[337875484,1726177848652,-582.85230602,0.00013,2]
[337875485,1726177848662,-2539.215395,0.00013,2]
[337875486,1726177848671,-150.0,0.00013358,2]
[337875487,1726177848681,-91060.93229886,0.000146,2]
[337875488,1726177848739,-11004.99999995,0.000146,2]
[337875489,1726177848750,-292.4231734,0.000146,2]
[337875490,1726177872534,235.1609168,0.00010958,2]
[337875496,1726178310668,371.6,0.00010959,2]
[337875497,1726178363984,155.35,0.00010943,2]
[337875501,1726178546949,882.6,0.00010959,2]
[337875515,1726178884513,188.24,0.00010959,2]
[337875516,1726178921424,-250.0,0.00012479,2]
[337875517,1726178921450,-250.0,0.00012499,2]
[337875518,1726178921476,-250.0,0.00012511,2]
[337875519,1726178921502,-171.91718399,0.00012648,2]
[337875520,1726178921527,-401.53,0.00012748,2]
[337875521,1726178921553,-257.82,0.00012757,2]
[337875522,1726178921580,-159.73,0.00012798,2]
[337875523,1726178921606,-159.73,0.00012819,2]
[337875524,1726178921632,-1288.39275907,0.0001283,2]
[337875526,1726179029439,164.72,0.00011299,2]
[337875548,1726179031983,-2468.276377,0.00012765,2]
[337875549,1726179031994,-204.6,0.00012776,2]
[337875550,1726179032004,-2500.74724093,0.0001283,2]
[337875551,1726179032014,-159.73,0.0001284,2]
[337875552,1726179032023,-600.0,0.00012847,2]
[337875553,1726179032032,-159.73,0.00012862,2]
[337875554,1726179032041,-429.17,0.00012894,2]
[337875555,1726179032050,-153.19,0.00013181,2]
[337875556,1726179032060,-3498.84299866,0.00013321,2]
[337875557,1726179032071,-2362.15700134,0.00013321,2]
[337875558,1726179032080,-233.29739267,0.00013321,2]
[337875559,1726179032104,-544.0998858,0.00013321,2]
[337875560,1726179032116,-942.89298596,0.00013321,2]
[337875561,1726179032127,-682.49820459,0.00013321,2]
[337875562,1726179032144,-284.51815666,0.00013321,2]
[337875567,1726179037856,-2650.05,0.00013321,2]
[337875568,1726179037868,-3973.64337432,0.00013321,2]
[337875569,1726179037878,-150.0,0.00013321,2]
[337875570,1726179037887,-1146.0,0.00013321,2]
[337875571,1726179037897,-163.289,0.00013358,2]
[337875572,1726179037907,-151.614,0.00013358,2]
[337875574,1726179037917,-151.11220067,0.00013412,2]
[337875576,1726179037926,-167.08,0.00013434,2]
[337875577,1726179037936,-150.0,0.00013517,2]
[337875578,1726179037946,-624.0,0.00013518,2]
[337875579,1726179037955,-448.0,0.00013518,2]
[337875580,1726179037964,-1547.0,0.00013518,2]
[337875581,1726179037975,-1261.0,0.00013518,2]
[337875582,1726179037984,-557.0,0.00013518,2]
[337875583,1726179037993,-150.387,0.00013518,2]
[337875584,1726179038003,-931.0,0.00013518,2]
[337875585,1726179038012,-810.0,0.00013518,2]
[337875586,1726179038022,-553.0,0.00013518,2]
[337875587,1726179038031,-1901.0,0.00013518,2]
[337875588,1726179038040,-806.0,0.00013518,2]
[337875589,1726179038049,-248.0,0.00013518,2]
[337875590,1726179038059,-1125.0,0.00013518,2]
[337875591,1726179038069,-3344.0,0.00013518,2]
[337875592,1726179038078,-1919.0,0.00013518,2]
[337875593,1726179038087,-164.72,0.00013563,2]
[337875594,1726179038097,-503.1918,0.00013599,2]
[337875595,1726179038108,-153.703,0.00013698,2]
[337875596,1726179038118,-479.77,0.00013699,2]
[337875597,1726179038128,-7654.65666095,0.00013699,2]
[337875598,1726179038139,-2939.9999999,0.00013699,2]
[337875599,1726179038150,-4461.84790807,0.00013699,2]
[337875600,1726179038161,-5533.35431226,0.00013699,2]
[337875601,1726179038172,-540.65357155,0.00013699,2]
[337875602,1726179038188,-4392.91305409,0.00013699,2]
[337875603,1726179038199,-5480.11449318,0.00013699,2]
[337875604,1726179038208,-500.0,0.00013699,2]
[337875605,1726179038217,-2751.0,0.00013699,2]
[337875606,1726179038226,-200.0,0.00013699,2]
[337875607,1726179038235,-162.18,0.00013699,2]
[337875609,1726179038245,-47865.48,0.00013699,2]
[337875611,1726179038260,-538.0,0.000137,2]
[337875612,1726179038269,-1000.0,0.000137,2]
[337875613,1726179038278,-163.91,0.00014096,2]
[337875614,1726179038288,-156.40179105,0.00014274,2]
[337875615,1726179038297,-1135.94451954,0.00014308,2]
[337875616,1726179038309,-150.0,0.00014368,2]
[337875617,1726179038319,-204.6,0.00014373,2]
[337875618,1726179038328,-479.77,0.00014384,2]
[337875619,1726179038338,-740.35643987,0.00014431,2]
[337875620,1726179038347,-300.0,0.00014434,2]
[337875621,1726179038357,-150.0,0.00014444,2]
[337875622,1726179038366,-600.0,0.00014453,2]
[337875623,1726179038376,-727.0,0.00014454,2]
[337875624,1726179038386,-150.0,0.00014493,2]
[337875625,1726179038395,-190.98665055,0.000145,2]
[337875626,1726179038404,-188.72978386,0.000145,2]
[337875627,1726179038413,-1058.69852512,0.000145,2]
[337875628,1726179038422,-308.63472774,0.000145,2]
[337875629,1726179038431,-429.17,0.00014506,2]
[337875630,1726179038440,-308.63472767,0.00014516,2]
[337875631,1726179038449,-500.0,0.00014521,2]
[337875632,1726179038459,-193.004835,0.00014521,2]
[337875633,1726179038468,-188.72978383,0.00014532,2]
[337875634,1726179038477,-308.63472767,0.00014532,2]
[337875635,1726179038486,-308.63472767,0.00014549,2]
[337875636,1726179038496,-188.72978383,0.00014565,2]
[337875637,1726179038505,-308.63472767,0.00014565,2]
[337875638,1726179038515,-1500.0,0.00014568,2]
[337875639,1726179038524,-271.30458156,0.00014573,2]
[337875640,1726179038533,-500.0,0.00014573,2]
[337875641,1726179038542,-500.0,0.00014573,2]
[337875642,1726179038551,-151.96,0.0001459,2]
[337875643,1726179038561,-151.96,0.0001459,2]
[337875644,1726179038570,-151.96,0.0001459,2]
[337875645,1726179038579,-151.96,0.0001459,2]
[337875646,1726179038589,-151.96,0.0001459,2]
[337875647,1726179038599,-151.96,0.0001459,2]
[337875648,1726179038608,-151.96,0.0001459,2]
[337875649,1726179038618,-151.96,0.0001459,2]
[337875650,1726179038628,-151.96,0.0001459,2]
[337875651,1726179038638,-151.96,0.0001459,2]
[337875652,1726179038647,-151.96,0.0001459,2]
[337875653,1726179038656,-151.96,0.0001459,2]
[337875654,1726179038666,-151.96,0.0001459,2]
[337875655,1726179038678,-151.96,0.0001459,2]
[337875656,1726179038687,-151.96,0.0001459,2]
[337875657,1726179038697,-151.96,0.0001459,2]
[337875658,1726179038706,-151.96,0.0001459,2]
[337875659,1726179038716,-151.96,0.0001459,2]
[337875660,1726179038725,-188.72978383,0.00014597,2]
[337875661,1726179038735,-292.99129239,0.00014599,2]
[337875662,1726179038745,-500.0,0.00014599,2]
[337875663,1726179038756,-500.0,0.00014599,2]
[337875664,1726179038766,-500.0,0.00014599,2]
[337875665,1726179038775,-174.44382131,0.00014599,2]
[337875666,1726179038784,-500.0,0.00014599,2]
[337875667,1726179038794,-371.41789855,0.00014599,2]
[337875668,1726179038803,-500.0,0.00014599,2]
[337875669,1726179038813,-500.0,0.00014599,2]
[337875670,1726179038823,-500.0,0.00014599,2]
[337875671,1726179038832,-500.0,0.00014599,2]
[337875672,1726179038842,-845.0,0.000146,2]
[337875673,1726179038851,-160117.86799021,0.000146,2]
[337875674,1726179038861,-40689.61959055,0.000146,2]
[337875675,1726179038873,-2931.71191177,0.000146,2]
[337875676,1726179038884,-27480.72739471,0.000146,2]
[337875677,1726179038896,-279.36,0.000146,2]
[337875678,1726179038909,-16425.40112996,0.000146,2]
[337875679,1726179038919,-18263.915,0.000146,2]
[337875680,1726179038935,-1078.30371341,0.000146,2]
[337875681,1726179038947,-475.14527595,0.000146,2]
[337875682,1726179038958,-1061.97783356,0.000146,2]
[337875683,1726179038973,-1291.525,0.000146,2]
[337875684,1726179038985,-1057.31349037,0.000146,2]
[337875685,1726179038996,-264.24,0.000146,2]
[337875686,1726179039021,-1364.83123837,0.000146,2]
[337875687,1726179039032,-567.02253439,0.000146,2]
[337875688,1726179039043,-1698.02186945,0.000146,2]
[337875689,1726179039054,-1150.17843482,0.000146,2]
[337875690,1726179039066,-1266.25068988,0.000146,2]
[337875691,1726179039077,-464.27999997,0.000146,2]
[337875692,1726179039093,-1051.74850456,0.000146,2]
[337875695,1726179039934,-837.74750378,0.00013321,2]
[337875696,1726179039947,-241.25249622,0.00013321,2]
[337875697,1726179039957,-140590.53531987,0.000146,2]
[337875698,1726179039969,-1785.82599457,0.000146,2]
[337875699,1726179039981,-727.40483639,0.000146,2]
[337875700,1726179039993,-19004.07780853,0.000146,2]
[337875701,1726179040004,-11427.13151269,0.000146,2]
[337875702,1726179040016,-265.92320033,0.000146,2]
[337875703,1726179040027,-584.338664,0.000146,2]
[337875704,1726179040039,-1469.13136545,0.000146,2]
[337875705,1726179040050,-1340.90112219,0.000146,2]
[337875706,1726179040061,-7790.07749732,0.000146,2]
[337875707,1726179040144,-4160437.94366376,0.000146,2]
[337875708,1726179040154,-2000.0,0.000146,2]
[337875709,1726179040163,-200.0,0.000146,2]
[337875710,1726179040172,-919.79383,0.000146,2]
[337875711,1726179040182,-150.0,0.000146,2]
[337875712,1726179040191,-201.0,0.0001461,2]
[337875723,1726179040522,-255.0,0.00014625,2]
[337875725,1726179040532,-500.0,0.00014628,2]
[337875727,1726179040542,-500.0,0.00014628,2]
[337875729,1726179040551,-500.0,0.00014628,2]
[337875731,1726179040561,-500.0,0.00014628,2]
[337875733,1726179040570,-20000.0,0.00014629,2]
[337875735,1726179040580,-188.72978383,0.00014629,2]
[337875737,1726179040589,-215.0,0.0001463,2]
[337875739,1726179040599,-204.39729,0.00014646,2]
[337875741,1726179040608,-500.0,0.00014648,2]
[337875743,1726179040617,-500.0,0.00014648,2]
[337875745,1726179040626,-500.0,0.00014648,2]
[337875747,1726179040635,-500.0,0.00014648,2]
[337875749,1726179040644,-5800.0,0.00014649,2]
[337875751,1726179040654,-500.0,0.00014657,2]
[337875753,1726179040663,-500.0,0.00014657,2]
[337875755,1726179040672,-500.0,0.00014657,2]
[337875756,1726179040681,-500.0,0.00014657,2]
[337875758,1726179040690,-5800.0,0.00014658,2]
[337875760,1726179040699,-201.0,0.0001466,2]
[337875762,1726179040708,-188.72978383,0.00014662,2]
[337875764,1726179040718,-5800.0,0.00014666,2]
[337875766,1726179040727,-201.0,0.0001467,2]
[337875768,1726179040736,-206.0,0.0001467,2]
[337875770,1726179040745,-251.0,0.0001467,2]
[337875772,1726179040755,-202.0,0.0001467,2]
[337875774,1726179040764,-213.0,0.0001467,2]
[337875776,1726179040773,-500.11950751,0.00014673,2]
[337875778,1726179040783,-5800.0,0.00014675,2]
[337875780,1726179040792,-2612.93597769,0.00014679,10]
[337875782,1726179040801,-215.0,0.0001468,2]
[337875784,1726179040811,-500.0,0.00014681,2]
[337875786,1726179040820,-500.0,0.00014681,2]
[337875788,1726179040830,-500.0,0.00014681,2]
[337875790,1726179040839,-872.52339935,0.00014681,2]
[337875792,1726179040848,-151.96,0.00014682,2]
[337875794,1726179040858,-8500.0,0.00014682,2]
[337875796,1726179040867,-5800.0,0.00014683,2]
[337875798,1726179040877,-500.0,0.00014691,2]
[337875800,1726179040886,-500.0,0.00014691,2]
[337875802,1726179040895,-8500.0,0.00014691,2]
[337875804,1726179040905,-5800.0,0.00014691,2]
[337875806,1726179040914,-190.98665055,0.00014694,2]
[337875807,1726179040923,-188.72978383,0.00014694,2]
[337875809,1726179040933,-1000.0,0.000147,2]
[337875811,1726179040942,-1000.0,0.000147,2]
[337875813,1726179040952,-1000.0,0.000147,2]
[337875815,1726179040961,-1009.3027,0.000147,2]
[337875817,1726179040972,-1000.0,0.000147,2]
[337875819,1726179040981,-1000.0,0.000147,4]
[337875821,1726179040990,-1000.0,0.000147,2]
[337875823,1726179041000,-200.0,0.000147,2]
[337875825,1726179041009,-1000.0,0.000147,2]
[337875827,1726179041019,-1000.0,0.000147,2]
[337875829,1726179041029,-1000.0,0.000147,2]
[337875830,1726179041040,-1000.0,0.000147,2]
[337875832,1726179041049,-500.0,0.000147,2]
[337875834,1726179041059,-500.0,0.000147,2]
[337875836,1726179041068,-200.0,0.000147,2]
[337875839,1726179041079,-8500.0,0.000147,2]
[337875840,1726179041089,-500.0,0.000147,2]
[337875842,1726179041098,-35000.0,0.000147,2]
[337875844,1726179041110,-5800.0,0.000147,2]
[337875846,1726179041119,-306.0,0.000147,2]
[337875848,1726179041129,-150.0,0.000147,2]
[337875850,1726179041138,-477.31654599,0.000147,2]
[337875852,1726179041147,-1002.04,0.000147,2]
[337875854,1726179041156,-600.0,0.000147,2]
[337875856,1726179041165,-600.0,0.000147,2]
[337875858,1726179041175,-221.0,0.0001471,2]
[337875860,1726179041185,-201.0,0.0001472,2]
[337875862,1726179041194,-1000.0,0.0001474,2]
[337875864,1726179041203,-1000.0,0.0001474,2]
[337875866,1726179041212,-1000.0,0.0001474,2]
[337875868,1726179041221,-1000.0,0.0001474,2]
[337875870,1726179041231,-1000.0,0.0001474,2]
[337875872,1726179041240,-1000.0,0.0001474,2]
[337875874,1726179041249,-1000.0,0.0001474,2]
[337875876,1726179041258,-1000.0,0.0001474,2]
[337875878,1726179041268,-1000.0,0.0001474,2]
[337875880,1726179041278,-1000.0,0.0001474,2]
[337875882,1726179041287,-1000.0,0.0001474,2]
[337875884,1726179041296,-1000.0,0.0001474,2]
[337875886,1726179041305,-1000.0,0.0001474,2]
[337875888,1726179041314,-1000.0,0.0001474,2]
[337875890,1726179041323,-1000.0,0.0001474,2]
[337875892,1726179041332,-215.0,0.0001474,2]
[337875894,1726179041341,-200.0,0.00014746,2]
[337875896,1726179041350,-500.0,0.00014773,2]
[337875898,1726179041359,-160.63913216,0.00014773,2]
[337875899,1726179041368,-500.0,0.00014773,2]
[337875901,1726179041378,-500.0,0.00014773,2]
[337875903,1726179041387,-500.0,0.00014773,2]
[337875905,1726179041396,-500.0,0.00014773,2]
[337875907,1726179041406,-160.10317077,0.00014773,2]
[337875909,1726179041415,-507.59455839,0.00014773,2]
[337875911,1726179041424,-472.37041026,0.00014773,2]
[337875913,1726179041434,-201.0,0.0001478,2]
[337875916,1726179041444,-4531.0,0.0001478,2]
[337875918,1726179041453,-151.96,0.00014784,2]
[337875920,1726179041462,-490.4919183,0.00014784,2]
[337875921,1726179041472,-1218.3607051,0.00014784,2]
[337875923,1726179041482,-5096.4673894,0.00014784,2]
[337875924,1726179041491,-5002.97519145,0.00014789,6]
[337875925,1726179041501,-90187.71608334,0.00014789,2]
[337875926,1726179041521,-215.0,0.0001479,2]
[337875927,1726179041530,-201.0,0.0001479,2]
[337875928,1726179041539,-206.0,0.0001479,2]
[337875929,1726179041548,-251.0,0.0001479,2]
[337875930,1726179041557,-202.0,0.0001479,2]
[337875931,1726179041567,-218.0,0.0001479,2]
[337875932,1726179041576,-210.0,0.0001479,2]
[337875933,1726179041586,-213.0,0.0001479,2]
[337875934,1726179041595,-3375.35811902,0.00014793,2]
[337875935,1726179041604,-150.0,0.00014794,2]
[337875936,1726179041613,-500.0,0.00014794,2]
[337875937,1726179041623,-500.0,0.00014794,2]
[337875938,1726179041632,-500.0,0.00014794,2]
[337875939,1726179041641,-500.0,0.00014794,2]
[337875940,1726179041650,-500.0,0.00014794,2]
[337875941,1726179041660,-500.0,0.00014794,2]
[337875942,1726179041669,-500.0,0.00014794,2]
[337875943,1726179041678,-151.0,0.00014794,2]
[337875944,1726179041687,-151.0,0.00014794,2]
[337875945,1726179041697,-500.0,0.00014794,2]
[337875947,1726179041707,-500.0,0.00014794,2]
[337875949,1726179041716,-500.0,0.00014794,2]
[337875951,1726179041725,-272.399714,0.00014794,2]
[337875953,1726179041735,-151.0,0.00014794,2]
[337875955,1726179041744,-151.0,0.00014794,2]
[337875957,1726179041753,-291.185503,0.00014794,2]
[337875958,1726179041762,-151.0,0.00014794,2]
[337875960,1726179041772,-151.0,0.00014794,2]
[337875962,1726179041781,-151.0,0.00014794,2]
[337875964,1726179041790,-176.293666,0.00014794,2]
[337875966,1726179041800,-500.0,0.00014794,2]
[337875968,1726179041809,-500.0,0.00014794,2]
[337875970,1726179041819,-500.0,0.00014794,2]
[337875972,1726179041828,-500.0,0.00014794,2]
[337875974,1726179041838,-500.0,0.00014794,2]
[337875976,1726179041847,-500.0,0.00014794,2]
[337875978,1726179041857,-500.0,0.00014794,2]
[337875979,1726179041866,-609.71180742,0.00014794,2]
[337875981,1726179041875,-500.0,0.00014794,3]
[337875983,1726179041885,-500.0,0.00014794,3]
[337875985,1726179041894,-500.0,0.00014794,3]
[337875987,1726179041904,-420.73606069,0.00014794,3]
[337875989,1726179041914,-514.66,0.00014794,2]
[337875991,1726179041923,-514.66,0.00014794,2]
[337875993,1726179041932,-514.66,0.00014794,2]
[337875995,1726179041942,-514.66,0.00014794,2]
[337875997,1726179041951,-514.66,0.00014794,2]
[337875999,1726179041961,-514.66,0.00014794,2]
[337876001,1726179041970,-514.66,0.00014794,2]
[337876003,1726179041979,-514.66,0.00014794,2]
[337876005,1726179041988,-514.66,0.00014794,2]
[337876007,1726179041997,-514.66,0.00014794,2]
[337876009,1726179042010,-514.66,0.00014794,2]
[337876011,1726179042019,-514.66,0.00014794,2]
[337876013,1726179042028,-514.66,0.00014794,2]
[337876015,1726179042037,-514.66,0.00014794,2]
[337876017,1726179042046,-514.66,0.00014794,2]
[337876018,1726179042055,-514.66,0.00014794,2]
[337876020,1726179042064,-514.66,0.00014794,2]
[337876022,1726179042073,-514.66,0.00014794,2]
[337876024,1726179042083,-514.66,0.00014794,2]
[337876026,1726179042092,-514.66,0.00014794,2]
[337876028,1726179042101,-514.66,0.00014794,2]
[337876030,1726179042113,-514.66,0.00014794,2]
[337876032,1726179042121,-514.66,0.00014794,2]
[337876034,1726179042130,-514.79394438,0.00014794,2]
[337876036,1726179042139,-308.716,0.00014794,2]
[337876038,1726179042149,-151.0,0.00014794,2]
[337876040,1726179042158,-151.0,0.00014794,2]
[337876042,1726179042167,-151.0,0.00014794,2]
[337876044,1726179042176,-232.518358,0.00014794,2]
[337876046,1726179042187,-1234.39,0.00014794,2]
[337876048,1726179042196,-1234.39,0.00014794,2]
[337876050,1726179042205,-1234.39,0.00014794,2]
[337876052,1726179042214,-1234.39,0.00014794,2]
[337876054,1726179042224,-1234.39,0.00014794,2]
[337876056,1726179042233,-1234.39,0.00014794,2]
[337876058,1726179042242,-1234.39,0.00014794,2]
[337876060,1726179042251,-1234.39,0.00014794,2]
[337876062,1726179042264,-1234.39,0.00014794,2]
[337876064,1726179042273,-1234.39,0.00014794,2]
[337876066,1726179042283,-1234.39,0.00014794,2]
[337876068,1726179042292,-1234.39,0.00014794,2]
[337876070,1726179042301,-1234.39,0.00014794,2]
[337876072,1726179042310,-1234.39,0.00014794,2]
[337876074,1726179042319,-1234.39,0.00014794,2]
[337876076,1726179042328,-1234.39,0.00014794,2]
[337876078,1726179042338,-1234.39,0.00014794,2]
[337876080,1726179042347,-1234.39,0.00014794,2]
[337876082,1726179042356,-1234.39,0.00014794,2]
[337876083,1726179042365,-1234.39,0.00014794,2]
[337876085,1726179042374,-1234.39,0.00014794,2]
[337876087,1726179042383,-1234.39,0.00014794,2]
[337876089,1726179042392,-1234.39,0.00014794,2]
[337876091,1726179042401,-1234.49570639,0.00014794,2]
[337876093,1726179042410,-500.0,0.00014794,2]
[337876095,1726179042419,-500.0,0.00014794,2]
[337876097,1726179042428,-500.0,0.00014794,2]